Cogmind - Beta 16 @@@ ROGUE MODE // 2025.11.10 @ 14:12:34 Player: Omega Result: Self-destructed Performance ------------- Evolutions (1) 500 Regions Visited (2) 400 Robots Destroyed (8) 40 Value Destroyed (186) 186 Prototype IDs (2) 40 Alien Tech Used (0) 0 Bonus (0) 0 TOTAL SCORE: 1166 Bonus ------- None Cogmind --------- Core Integrity 241/400 Matter 295/300 Energy 250/250 System Corruption 0% Temperature Cool (95) Movement Core (350) Ox6 Location -9/Materials Parts ------- > --- POWER (2) -------- Ion Engine Ion Engine > --- PROPULSION (3) --- (None) > --- UTILITY (2) ------ Small Storage Unit Small Storage Unit > --- WEAPON (2) ------- (None) > --- INVENTORY (8) ---- Flight Unit Flight Unit Flight Unit Flight Unit High-capacity Battery (250) Weight Redist. System Peak State ------------ > --- POWER ------------ Ion Engine Ion Engine > --- PROPULSION ------- Light Treads Light Treads > --- UTILITY ---------- Small Storage Unit Small Storage Unit > --- WEAPON ----------- Medium Laser Small Laser > --- INVENTORY -------- Flight Unit Flight Unit Flight Unit Flight Unit High-capacity Battery Weight Redist. System EM Pulse Gun [Rating: 8] Favorites ----------- Power Ion Engine Engine Ion Engine Propulsion Light Treads Treads Light Treads Utility Small Storage Unit Storage Small Storage Unit Weapon Small Laser Energy Gun Small Laser Build | -11 -10 -9 ------- Run | Yrd Mat Mat Slots Evolved 2 | . . 2 Power 1 | . . 1 Propulsion 1 | . . 1 Utility . | . . . Weapon . | . . . Parts Attached 9 | 7 . 2 Power 2 | 1 . 1 Engine 2 | 1 . 1 Core . | . . . Reactor . | . . . Propulsion 2 | 2 . . Treads 2 | 2 . . Leg . | . . . Wheel . | . . . Hover . | . . . Flight . | . . . Utility 2 | 2 . . Device . | . . . Storage 2 | 2 . . Processor . | . . . Hackware . | . . . Protection . | . . . Artifact . | . . . Weapon 3 | 2 . 1 Energy Gun 3 | 2 . 1 Energy Cannon . | . . . Ballistic Gun . | . . . Ballistic Cannon . | . . . Launcher . | . . . Special Weapon . | . . . Impact Weapon . | . . . Slashing Weapon . | . . . Piercing Weapon . | . . . Special Melee Weapon . | . . . Unidentified Prototypes . | . . . Parts Lost 5 | . . 5 Power . | . . . Propulsion 2 | . . 2 Utility . | . . . Weapon 3 | . . 3 Highest Loss Streak 5 | . . 5 To Critical Strikes . | . . . Average Backups 5 | 1 6 6 Power . | . 1 . Propulsion 2 | . 3 4 Utility 1 | . 1 2 Weapon . | . 1 . Tool/Special . | . . . Unused Backups 6 | . . 6 Power . | . . . Propulsion 4 | . . 4 Utility 2 | . . 2 Weapon . | . . . Tool/Special . | . . . Average Slot Usage (%) 92 | . 100 80 Engine 17 | . 14 22 Treads 24 | . 28 17 Storage 25 | . 28 22 Energy Gun 24 | . 28 18 Peak Build Rating 8 | 7 7 8 Average Rating 6 | 5 7 7 On Entrance 4 | . 7 7 Avg Prop Armor Cover (%) . | . . . Naked Turns . | . . . Heaviest Build 23 | 18 18 23 Greatest Support 40 | 40 40 40 Greatest Overweight (x) 6 | . . 6 Average Overweight (x) . | . . . Largest Inventory Capacity 8 | 8 8 8 Average Capacity 7 | 7 8 8 Most Carried 8 | 2 8 7 Average Carried 5 | 1 6 6 Final Capacity 8 | 8 8 8 Final Carried 8 | 2 8 6 Class Distribution -------------------- 100% | Mutant Dominant Class ---------------- Mutant | -10/Materials Mutant | -9/Materials Resources | -11 -10 -9 ----------- Run | Yrd Mat Mat Matter Collected 320 | 270 . 50 Remotely . | . . . Salvage Created 361 | 94 54 213 Parts 18 | 2 3 13 Haulers Intercepted 1 | . 1 . Recyclers Shooed 1 | . 1 . Parts Field Recycled . | . . . Retrieved Matter . | . . . Parts Self-Destructed . | . . . Prevented . | . . . Parts Restored . | . . . Kills | -11 -10 -9 ------- Run | Yrd Mat Mat Combat Hostiles Destroyed 6 | . 1 5 Guns 6 | . 1 5 Classes Destroyed 5 | 1 2 2 Hauler 1 | . 1 . Recycler 1 | 1 . . Swarmer 2 | . 1 1 Grunt 2 | . . 2 Sentry 2 | . . 2 Best Kill Streak 3 | 1 1 3 Combat Bots Only 3 | . 1 3 Max Kills in Single Turn 1 | 1 1 1 Gunslinging . | . . . Exploded . | . . . Melee . | . . . Uniques/NPCs Destroyed . | . . . Combat | -11 -10 -9 -------- Run | Yrd Mat Mat Hostile Shots Fired 81 | . 4 77 Missed 19 | . 1 18 Hits 62 | . 3 59 Projectile 62 | . 3 59 Critical Strikes 1 | . . 1 Damage Taken 774 | . 42 732 Core 168 | . 9 159 Absorbed by Shields . | . . . Core Remaining (%) 98 | 100 96 . Volleys Fired 41 | 2 18 21 Largest 2 | 2 2 2 Hottest 90 | 90 90 90 Shots Fired 71 | 4 34 33 Gun 71 | 4 34 33 Cannon . | . . . Launcher . | . . . Special . | . . . Kinetic . | . . . Thermal 59 | 4 34 21 Explosive . | . . . Electromagnetic 12 | . . 12 Robot Hit Streak 16 | 3 10 16 Robot Miss Streak 3 | . 3 1 Penetration Max . | . . . Secondary Targets . | . . . Shots Hit Robots 52 | 3 23 26 Core Hits 18 | 2 5 11 Critical Kills . | . . . Critical Parts Destroyed . | . . . Critical Strikes 3 | 1 . 2 Burn 2 | 1 . 1 Corrupt 1 | . . 1 Melee Attacks . | . . . Impact . | . . . Slashing . | . . . Piercing . | . . . Sneak Attacks . | . . . Combat Hostiles . | . . . Follow-up Attacks . | . . . Damage Inflicted 617 | 36 271 310 Guns 608 | 36 271 301 Cannons . | . . . Explosions . | . . . Melee . | . . . Ramming 9 | . . 9 Kinetic . | . . . Thermal 490 | 36 271 183 Explosive . | . . . Electromagnetic 118 | . . 118 Impact . | . . . Slashing . | . . . Piercing . | . . . Highest Corruption . | . . . Average Corruption . | . . . Corruption Purged . | . . . Corruption Blocked . | . . . Overload Shots . | . . . Overflow Damage . | . . . Projectiles . | . . . Explosions . | . . . Melee . | . . . Knockbacks . | . . . Impact . | . . . Kinetic . | . . . Secondary . | . . . Self-Inflicted Damage . | . . . Shots . | . . . Rammed 5 | . . 5 Targets Rammed 5 | . . 5 Kicked . | . . . Crushed . | . . . Highest Temperature 415 | 60 150 415 Average Temperature 159 | 30 64 268 Received Heat Transfer 300 | . 9 291 Effects 10 | . . 10 Shutdowns 6 | . . 6 Matter Decay 1 | . . 1 Short Circuit 1 | . . 1 Damage (minor) 2 | . . 2 Siege Activations . | . . . Martial Activations . | . . . Shielding Activations . | . . . Robots Disrupted . | . . . Combat Hostiles . | . . . Robots Corrupted . | . . . Combat Hostiles . | . . . Parts Fried 1 | . . 1 Impact Corruptions . | . . . Robots Melted . | . . . Combat Hostiles . | . . . Parts Melted . | . . . Heat Transferred 1414 | 161 707 546 Parts Sabotaged . | . . . Parts Stolen . | . . . Parts Stripped . | . . . Power Chain Reactions . | . . . Alert | -11 -10 -9 ------- Run | Yrd Mat Mat Maximum Alert Level . | . . . Low Security (%) 100 | 100 100 100 Level 1 . | . . . Level 2 . | . . . Level 3 . | . . . Level 4 . | . . . Level 5 . | . . . High Security . | . . . Max Security . | . . . Peak Influence 60 | . 35 60 Initial . | . . . Average 7 | . 3 16 Influence Increases 185 | 5 50 130 Destroy 0b10 Robot/C 120 | . 20 100 Destroy 0b10 Robot/NC 10 | 5 5 . Destroy Leader 42 | . 12 30 Successful Hack 13 | . 13 . Influence Decreases 145 | 5 50 90 Time Decay 95 | 5 50 40 Lost Part 50 | . . 50 Squads Dispatched 2 | . 1 1 Investigation 2 | . 1 1 Extermination . | . . . Reinforcement . | . . . Assault . | . . . Garrison . | . . . Intercept . | . . . Searches Triggered . | . . . Construction Impeded . | . . . Haulers Reinforced . | . . . Active Scanning Responses . | . . . Cargo Convoy Interrupts . | . . . Stealth | -11 -10 -9 --------- Run | Yrd Mat Mat Distress Signals 2 | . 1 1 Communications Jammed . | . . . Distress Signals . | . . . Times Spotted 17 | . 6 11 Peak Tracking Total 10 | . 6 10 Tactical Retreats . | . . . Traps | -11 -10 -9 ------- Run | Yrd Mat Mat Traps Triggered . | . . . Indirectly . | . . . Trap Hack Attempts . | . . . Triggered . | . . . Disarmed . | . . . Reprogrammed . | . . . Reused . | . . . Traps Extracted . | . . . Installed . | . . . Triggered . | . . . Machines | -11 -10 -9 ---------- Run | Yrd Mat Mat Machines Disabled . | . . . Max in Single Turn . | . . . Machines Repaired . | . . . Machines Dismantled . | . . . Machines Sabotaged . | . . . Overloaded Fab Kills . | . . . Hacking | -11 -10 -9 --------- Run | Yrd Mat Mat Machines Accessed 3 | . 2 1 Terminals 2 | . 2 . Fabricators . | . . . Repair Stations . | . . . Recycling Units 1 | . . 1 Scanalyzers . | . . . Garrison Access . | . . . Total Hacks 13 | . 10 3 Successful 9 | . 6 3 Failed 4 | . 4 . Catastrophic . | . . . Database Lockouts . | . . . Manual 4 | . 4 . Terminals 10 | . 10 . Fabricators . | . . . Repair Stations . | . . . Recycling Units 3 | . . 3 Scanalyzers . | . . . Garrison Access . | . . . Terminal Hacks 4 | . 4 . Robot Analysis 1 | . 1 . Prototype ID Bank 1 | . 1 . Emergency Access Points 1 | . 1 . Locate Traps 1 | . 1 . Fabricator Hacks . | . . . Repair Station Hacks . | . . . Recycling Unit Hacks 3 | . . 3 Process 1 | . . 1 Report Inventory 1 | . . 1 Retrieve Matter 1 | . . 1 Scanalyzer . | . . . Garrison Access Hacks . | . . . Unauthorized Hacks 2 | . 2 . Terminals 2 | . 2 . Botnet 2 | . 2 . Fabricators . | . . . Repair Stations . | . . . Recycling Units . | . . . Scanalyzers . | . . . Garrison Access . | . . . Data Cores Recovered 1 | . 1 . Used . | . . . Hacking Detections 3 | . 2 1 Full Trace Events 1 | . . 1 Feedback Events . | . . . Feedback Blocked . | . . . Robot Schematics Acquired . | . . . Robots Built . | . . . Authchips . | . . . Time . | . . . Total Robot Build Rating . | . . . Part Schematics Acquired . | . . . Parts Built . | . . . Authchips . | . . . Time . | . . . Total Part Build Rating . | . . . Part Studies Acquired . | . . . Parts Repaired . | . . . Time . | . . . Parts Recycled . | . . . Recycled Matter 4 | . . 4 Retrieved Matter 4 | . . 4 Retrieved Components . | . . . Parts Scanalyzed . | . . . Part Schematics Acquired . | . . . Parts Damaged . | . . . Bothacking | -11 -10 -9 ------------ Run | Yrd Mat Mat Used RIF Installer . | . . . Robots Hacked . | . . . Non-combat . | . . . Combat . | . . . Robot Hacks Applied . | . . . Relay Couplers Released . | . . . Fabnet Peak Effective % . | . . . Robots Rewired . | . . . Allies Hacked . | . . . Hacks Repelled . | . . . Allies | -11 -10 -9 -------- Run | Yrd Mat Mat Total Allies . | . . . Largest Group . | . . . Highest-Rated Group . | . . . Highest-Rated Ally . | . . . Total Orders . | . . . Ally Attacks . | . . . Total Damage . | . . . Kills . | . . . Allies Corrupted . | . . . Allies Melted . | . . . Intel | -11 -10 -9 ------- Run | Yrd Mat Mat Active Infowar (turns) . | . . . Robot Analysis Total 1 | . 1 . Derelict Logs Recovered . | . . . Drone Launches . | . . . Drone Recoveries . | . . . Exploration | -11 -10 -9 ------------- Run | Yrd Mat Mat Turns Passed 532 | 77 289 166 Spaces Moved 242 | 41 145 56 Core 6 | 5 . 1 Treads 236 | 36 145 55 Legs . | . . . Wheels . | . . . Hover . | . . . Flight . | . . . Fastest Speed 50 | 50 160 160 Average Speed 158 | 146 160 163 Slowest Speed 350 | 160 160 350 Overloaded Moves . | . . . Propulsion Burnouts . | . . . Robots Hopped . | . . . Potential Cave-ins . | . . . Cave-ins Triggered . | . . . Exploration Rate (%) 17 | 5 35 11 Regions Visited 2 Branch Regions . Pre-discovered Areas . | . . . Known Exits Taken . | . . . Unknown Exits Taken 2 | 1 1 . Scrap Searched . | . . . Spaces Dug . | . . . Terrain Destroyed . | . . . Melee . | . . . Projectile . | . . . AOE . | . . . Terrain Rammed . | . . . Walls Destroyed . | . . . Machines Disabled . | . . . Actions | -11 -10 -9 --------- Run | Yrd Mat Mat Total 304 | 51 168 85 Wait . | . . . Move 240 | 40 144 56 Hop . | . . . Pick Up 8 | 2 6 . Fast Attach 7 | 7 . . Attach 2 | . . 2 Detach . | . . . Swap 1 | . . 1 Drop . | . . . Fire 41 | 2 18 21 Melee . | . . . Ram 4 | . . 4 Kick . | . . . Crush 1 | . . 1 Escape Stasis . | . . . Rewire . | . . . Trap . | . . . Miscellaneous . | . . . Route ------- -11/Scrapyard -10/Materials (discovered 2 exits: *Mat / [*Min]) -9/Materials History --------- Turn | Location | Event 7 | -11/Scrapyard | Discovered new exit (range 15) 78 | -11/Scrapyard | Entered Materials 79 | -10/Materials | Met a group of wandering Federalists 205 | -10/Materials | Lost 3 allies 262 | -10/Materials | Discovered new exit (range 14) 307 | -10/Materials | Build established: Mutant 340 | -10/Materials | Discovered new exit (range 16) 367 | -10/Materials | Entered another Materials area 367 | -9/Materials | Evolved 2 slots: Power x1, Propulsion x1 533 | -9/Materials | Self-destructed Last Messages --------------- R-06 Scavenger collects Flight Unit. R-06 Scavenger collects Hvy. Assault Rifle. Broken Lgt. Treads destroyed. Power failure, Ion Engine shutdown. G-34 Mercenary destroyed. R-06 Scavenger collects Lgt. Ion Engine. Overheating: Sml. Storage Unit damaged (-61). R-06 Scavenger collects Aluminum Leg. Heat Sink fried. Y-45 Defender destroyed. Slammed into U-05 Engineer. R-06 Scavenger collects Ion Engine. Power failure, Ion Engine shutdown. U-05 Engineer repairs door. EM Pulse Gun destroyed. Slammed into G-34 Mercenary. Acquired 50 matter. Slammed into G-34 Mercenary. Ion Engine broken. Destabilizing: Short circuit. Map ----- +----------------------------------------------------+ | ??????# #??????????????????????????????????????? | | ??????# #??????????????????????????????????????? | | ??????# #??????????????????????????????????????? | | ??????# #??????????????????????????????????????? | | ??????# #??????????????????????????????????????? | | ??????# #??????????????????????????????????????? | | ####### ###????????????????????????????????????? | | #????????????????????????????????????? | | #????????????????????????????????????? | | #????????????????????????????????????? | | ###+##### #????????????????????????????????????? | | # #????????????????#???????????????????? | | """ # #??????????????? #??????????????????? | | """ # #?????????????? #??????????????????? | | """ # #??###?????????"w #??????????????????? | | # #?? ????????? ???????????????????? | | # #? """????????? ???????????????????? | | "Y" # #?"""""??????? #???????????????????? | | """ # # """"" ?????? #???????????????????? | | # # """"" ???? #???????????????????? | | ######### + """ ???? #???????????????????? | | ????????# # #??? #???????????????????? | | ????????# # #?## ######### ?????????? | | ????????# ###########?# ^ r ????????? | | ????????# # *%=![######g ????????? | | ????????# # *[[ %+%! @ ????????? | | ????????# # [[[ ######g #?????????????? | | ????????# / [[[ #????# #?????????????? | | ????????# # #????#b #?????????????? | | ????????# #! #????# !! #?????????????? | | ????????# ########????# !! #?????????????? | | ???????# ??????????? !! #?????????????? | | ???????# ???????????# #?????????????? | | ???????+ ""???????????# +?????????????? | | ???????# ""???????????? "T" #?????????????? | | ???????# ""???????????? """ #?????????????? | | ???????## ???????????? ?? #?????????????? | | ????????# ?????????????? ??????????????????? | | ????????# ?????????????? ####?????????????????? | | ????????# ?????????????? #????????????????????? | | ????????# ??????????????#+#?????????????????????? | | ????????? ???????????????????????????????????????? | | ?????????????????????????????????????????????????? | | ?????????????????????????????????????????????????? | | ?????????????????????????????????????????????????? | | ?????????????????????????????????????????????????? | | ?????????????????????????????????????????????????? | | ?????????????????????????????????????????????????? | | ?????????????????????????????????????????????????? | | ?????????????????????????????????????????????????? | +----------------------------------------------------+ Best States ------------- Heat Dissipation 28 Energy Generation 15 Energy Capacity 400 Matter Stores 300 Matter Capacity 300 Sight Range 16 Terrain Scan Density 10 Evasion (%) 40 Recoil Reduction 2 Item Schematics ----------------- None Robot Schematics ------------------ None Fabricated ------------ Nothing Repaired ---------- Nothing Studied --------- None Alien Tech Used ----------------- None Achievements -------------- None Challenges ------------ None Game ------ Seed SalvageTractorFlakker Manual? 0 Play Time 00:08:14 Cumulative 26.1 hours Start 2025.11.10 @ 14:05:47 End 2025.11.10 @ 14:12:34 Sessions 1 Manual Loads 0 Difficulty Rogue Special Mode None Game No. 38 Rogue 38 Adventurer 0 Explorer 0 Win Type - Total 0 Types 0/0/0/0/0/0/0/0/0/0 Lore% 16 Gallery% 23 Achievement% 15 Wizard Run 0 Options --------- Layout 1 ASCII 0 Keyboard 0 Movement Mouse Keybinds 0 Fullscreen 1 Font 24/Smallcaps Map View 50x35 Zoom Use 0% Tactical HUD 0 Map Filters NONE Filters NONE Steam 1 RUN: f4690f04-4b4d-4f1a-b7ce-144cc506939a